[Event "Late-Titled-Tuesday-Blitz-May-07-2024"]
[Site "Chess.com"]
[Date "2024.05.07"]
[Round "11"]
[White "Byniolus"]
[Black "GMRafpig"]
[Result "0-1"]
[WhiteElo "2826"]
[BlackElo "2745"]
[TimeControl "180+1"]
[EndTime "16:07:21 PDT"]
[Termination "GMRafpig won on time"]

1. d4 {[%clk 0:03:00.9]} 1... Nf6 {[%clk 0:02:59.4]} 2. Nf3 {[%clk 0:03:01.2]}
2... e6 {[%clk 0:02:57]} 3. Bf4 {[%clk 0:03:00.7]} 3... b6 {[%clk 0:02:52.2]} 4.
e3 {[%clk 0:03:00.8]} 4... Bb7 {[%clk 0:02:52.6]} 5. h3 {[%clk 0:03:00.9]} 5...
Be7 {[%clk 0:02:52.6]} 6. Nbd2 {[%clk 0:03:00.9]} 6... O-O {[%clk 0:02:52.7]} 7.
Bd3 {[%clk 0:03:01.3]} 7... c5 {[%clk 0:02:51]} 8. c3 {[%clk 0:03:01.6]} 8...
Nc6 {[%clk 0:02:50.2]} 9. O-O {[%clk 0:03:01]} 9... d5 {[%clk 0:02:49.1]} 10. a3
{[%clk 0:02:59.1]} 10... a5 {[%clk 0:02:40.7]} 11. Qe2 {[%clk 0:02:58.5]} 11...
Qc8 {[%clk 0:02:27.8]} 12. Rac1 {[%clk 0:02:55]} 12... Ba6 {[%clk 0:02:09.8]}
13. c4 {[%clk 0:02:54.4]} 13... Qb7 {[%clk 0:02:03.3]} 14. Bg5 {[%clk
0:02:43.6]} 14... h6 {[%clk 0:01:57]} 15. Bxf6 {[%clk 0:02:36.2]} 15... Bxf6
{[%clk 0:01:55.8]} 16. cxd5 {[%clk 0:02:37.1]} 16... exd5 {[%clk 0:01:48]} 17.
dxc5 {[%clk 0:02:27.1]} 17... Bxd3 {[%clk 0:01:23.1]} 18. Qxd3 {[%clk
0:02:25.9]} 18... Rfd8 {[%clk 0:01:19.3]} 19. cxb6 {[%clk 0:02:16.4]} 19... Qxb6
{[%clk 0:01:18.7]} 20. Rc2 {[%clk 0:02:16.4]} 20... a4 {[%clk 0:00:53.3]} 21.
Rfc1 {[%clk 0:02:10.6]} 21... Na5 {[%clk 0:00:53.4]} 22. Nd4 {[%clk 0:02:03]}
22... Rab8 {[%clk 0:00:53.1]} 23. N2f3 {[%clk 0:01:55.4]} 23... Nc4 {[%clk
0:00:52.3]} 24. Rb1 {[%clk 0:01:42.8]} 24... Qd6 {[%clk 0:00:45.3]} 25. Qd1
{[%clk 0:01:12.7]} 25... Rb6 {[%clk 0:00:43.3]} 26. Nd2 {[%clk 0:00:44]} 26...
Na5 {[%clk 0:00:27.7]} 27. Rc3 {[%clk 0:00:31.6]} 27... Qd7 {[%clk 0:00:20.9]}
28. Rc5 {[%clk 0:00:21.8]} 28... Nb7 {[%clk 0:00:17.9]} 29. Rc3 {[%clk
0:00:16.2]} 29... Na5 {[%clk 0:00:17.6]} 30. Rbc1 {[%clk 0:00:16.7]} 30... Bxd4
{[%clk 0:00:13.6]} 31. exd4 {[%clk 0:00:16.7]} 31... Rxb2 {[%clk 0:00:14.1]} 32.
Rc7 {[%clk 0:00:15.4]} 32... Qe8 {[%clk 0:00:14.5]} 33. Nf3 {[%clk 0:00:15.5]}
33... Nc4 {[%clk 0:00:14.3]} 34. Ne5 {[%clk 0:00:04.2]} 34... Nxe5 {[%clk
0:00:13.6]} 35. dxe5 {[%clk 0:00:05.1]} 35... Qxe5 {[%clk 0:00:13]} 36. Qxa4
{[%clk 0:00:05.9]} 36... d4 {[%clk 0:00:07.6]} 37. Qc4 {[%clk 0:00:06.2]} 37...
Qf5 {[%clk 0:00:04.6]} 38. Rf1 {[%clk 0:00:02.7]} 38... d3 {[%clk 0:00:04.7]}
39. Qc3 {[%clk 0:00:03.1]} 39... Rc2 {[%clk 0:00:04.2]} 40. Qa5 {[%clk
0:00:01.4]} 40... Qxa5 {[%clk 0:00:03.6]} 0-1

[Event "Late-Titled-Tuesday-Blitz-May-07-2024"]
[Site "Chess.com"]
[Date "2024.05.07"]
[Round "11"]
[White "ATM622"]
[Black "Meri-Arabidze"]
[Result "0-1"]
[WhiteElo "2546"]
[BlackElo "2728"]
[TimeControl "180+1"]
[EndTime "16:07:24 PDT"]
[Termination "Meri-Arabidze won by resignation"]

1. d4 {[%clk 0:03:00.9]} 1... Nf6 {[%clk 0:02:59.5]} 2. c4 {[%clk 0:03:01.1]}
2... e6 {[%clk 0:02:59.8]} 3. g3 {[%clk 0:03:00.4]} 3... d5 {[%clk 0:02:58.4]}
4. Bg2 {[%clk 0:03:00.7]} 4... Be7 {[%clk 0:02:58.8]} 5. Nf3 {[%clk 0:03:00.8]}
5... O-O {[%clk 0:02:59.3]} 6. O-O {[%clk 0:03:00.3]} 6... dxc4 {[%clk
0:02:59.8]} 7. Ne5 {[%clk 0:03:00.5]} 7... Nc6 {[%clk 0:02:56.4]} 8. Bxc6 {[%clk
0:03:00.9]} 8... bxc6 {[%clk 0:02:56.7]} 9. Nxc6 {[%clk 0:03:01.8]} 9... Qe8
{[%clk 0:02:53.8]} 10. Nxe7+ {[%clk 0:03:02.7]} 10... Qxe7 {[%clk 0:02:54.1]}
11. Qc2 {[%clk 0:03:03.6]} 11... e5 {[%clk 0:02:50.8]} 12. dxe5 {[%clk
0:03:03.9]} 12... Qxe5 {[%clk 0:02:50.8]} 13. Bf4 {[%clk 0:03:04.2]} 13... Qc5
{[%clk 0:02:40.6]} 14. Nd2 {[%clk 0:02:59.7]} 14... Ba6 {[%clk 0:02:10.2]} 15.
Rac1 {[%clk 0:02:59.3]} 15... c3 {[%clk 0:02:08.5]} 16. Qxc3 {[%clk 0:02:50.9]}
16... Qxc3 {[%clk 0:02:01.7]} 17. Rxc3 {[%clk 0:02:50.5]} 17... Nd5 {[%clk
0:01:55]} 18. Rc5 {[%clk 0:02:32.4]} 18... Nxf4 {[%clk 0:01:51.7]} 19. gxf4
{[%clk 0:02:32.9]} 19... Bxe2 {[%clk 0:01:51.8]} 20. Re1 {[%clk 0:02:31.2]}
20... Bg4 {[%clk 0:01:36.5]} 21. Rxc7 {[%clk 0:02:30.8]} 21... a5 {[%clk
0:01:36]} 22. Kg2 {[%clk 0:02:23.7]} 22... a4 {[%clk 0:01:35.4]} 23. Kg3 {[%clk
0:02:23.3]} 23... Be6 {[%clk 0:01:34.9]} 24. a3 {[%clk 0:02:23]} 24... Rfb8
{[%clk 0:01:28.8]} 25. Nc4 {[%clk 0:02:08.2]} 25... g6 {[%clk 0:01:04.7]} 26.
Re2 {[%clk 0:01:54.6]} 26... Rb3+ {[%clk 0:01:04.2]} 27. f3 {[%clk 0:01:38.3]}
27... Rd8 {[%clk 0:01:03.1]} 28. Re3 {[%clk 0:01:31.8]} 28... Bxc4 {[%clk
0:01:00.7]} 29. Rxb3 {[%clk 0:01:09.9]} 29... Bxb3 {[%clk 0:01:01.6]} 30. f5
{[%clk 0:01:06.1]} 30... gxf5 {[%clk 0:00:58.2]} 31. Kf4 {[%clk 0:01:06.2]}
31... Kg7 {[%clk 0:00:58.3]} 32. Kxf5 {[%clk 0:01:00.3]} 32... Rd2 {[%clk
0:00:57.6]} 33. h4 {[%clk 0:00:58.8]} 33... Rxb2 {[%clk 0:00:57.5]} 34. h5
{[%clk 0:00:59]} 34... h6 {[%clk 0:00:57.6]} 35. Ke5 {[%clk 0:00:54.7]} 35...
Rh2 {[%clk 0:00:56.2]} 36. f4 {[%clk 0:00:54.5]} 36... Rxh5+ {[%clk 0:00:56.1]}
37. f5 {[%clk 0:00:53.5]} 37... Be6 {[%clk 0:00:54.9]} 38. Ra7 {[%clk
0:00:53.6]} 38... Rxf5+ {[%clk 0:00:54.1]} 39. Ke4 {[%clk 0:00:53.8]} 39... Rg5
{[%clk 0:00:53.6]} 40. Kf4 {[%clk 0:00:53.1]} 40... Bb3 {[%clk 0:00:51.9]} 41.
Rb7 {[%clk 0:00:52.3]} 41... Rg6 {[%clk 0:00:51.6]} 42. Kf5 {[%clk 0:00:51.6]}
42... h5 {[%clk 0:00:51]} 43. Rb4 {[%clk 0:00:49.7]} 43... Rg4 {[%clk
0:00:48.3]} 44. Rb6 {[%clk 0:00:49.3]} 44... Be6+ {[%clk 0:00:46.1]} 45. Ke5
{[%clk 0:00:48.6]} 45... h4 {[%clk 0:00:46.3]} 46. Rb2 {[%clk 0:00:42.6]} 46...
h3 {[%clk 0:00:45.6]} 47. Rh2 {[%clk 0:00:42.8]} 47... Rg2 {[%clk 0:00:45.2]}
48. Rh1 {[%clk 0:00:42.9]} 48... Rg3 {[%clk 0:00:44.3]} 49. Kf4 {[%clk
0:00:42.7]} 49... Rxa3 {[%clk 0:00:43.8]} 50. Rg1+ {[%clk 0:00:43]} 50... Kf6
{[%clk 0:00:43.1]} 51. Rf1 {[%clk 0:00:42.6]} 51... Ke7 {[%clk 0:00:43]} 52. Rb1
{[%clk 0:00:38.2]} 52... h2 {[%clk 0:00:42.3]} 53. Ke4 {[%clk 0:00:35.5]} 53...
Rh3 {[%clk 0:00:40.3]} 54. Rh1 {[%clk 0:00:34.4]} 54... a3 {[%clk 0:00:40.2]}
55. Ke5 {[%clk 0:00:31.6]} 55... a2 {[%clk 0:00:39.6]} 56. Ke4 {[%clk
0:00:17.1]} 56... a1=Q {[%clk 0:00:37.1]} 57. Rc1 {[%clk 0:00:03]} 57... Qxc1
{[%clk 0:00:35]} 0-1

[Event "Late-Titled-Tuesday-Blitz-May-07-2024"]
[Site "Chess.com"]
[Date "2024.05.07"]
[Round "11"]
[White "Walter_White_Poland"]
[Black "Navyblue1"]
[Result "1/2-1/2"]
[WhiteElo "2401"]
[BlackElo "2240"]
[TimeControl "180+1"]
[EndTime "16:07:31 PDT"]
[Termination "Game drawn - insufficient material"]

1. e4 {[%clk 0:03:00.9]} 1... c5 {[%clk 0:02:58.4]} 2. Nf3 {[%clk 0:03:00.6]}
2... d6 {[%clk 0:02:58.1]} 3. d4 {[%clk 0:03:01]} 3... cxd4 {[%clk 0:02:58.7]}
4. Nxd4 {[%clk 0:03:01.6]} 4... Nf6 {[%clk 0:02:59]} 5. Nc3 {[%clk 0:03:02.2]}
5... a6 {[%clk 0:02:58]} 6. Bg5 {[%clk 0:03:02.6]} 6... Nbd7 {[%clk 0:02:57]} 7.
Bc4 {[%clk 0:02:52.4]} 7... Qb6 {[%clk 0:02:55.6]} 8. O-O {[%clk 0:02:46.8]}
8... Qxb2 {[%clk 0:02:48.6]} 9. Qd2 {[%clk 0:02:46.5]} 9... Qa3 {[%clk
0:02:46.3]} 10. Rfe1 {[%clk 0:02:37.9]} 10... Qc5 {[%clk 0:02:45.1]} 11. Bd5
{[%clk 0:02:34.3]} 11... e6 {[%clk 0:02:32.3]} 12. Rab1 {[%clk 0:02:31.4]} 12...
Rb8 {[%clk 0:02:25.4]} 13. Na4 {[%clk 0:02:05]} 13... Qc7 {[%clk 0:02:10.2]} 14.
Rb3 {[%clk 0:01:36]} 14... Nc5 {[%clk 0:01:59.9]} 15. Rc3 {[%clk 0:01:19]} 15...
Be7 {[%clk 0:01:42.2]} 16. Bb3 {[%clk 0:00:36.9]} 16... O-O {[%clk 0:01:36]} 17.
Nxc5 {[%clk 0:00:26.3]} 17... dxc5 {[%clk 0:01:33.9]} 18. e5 {[%clk 0:00:25.9]}
18... Nd5 {[%clk 0:01:19]} 19. Bxd5 {[%clk 0:00:22]} 19... Bxg5 {[%clk
0:01:10.8]} 20. Qxg5 {[%clk 0:00:21.3]} 20... exd5 {[%clk 0:01:10.6]} 21. Rg3
{[%clk 0:00:20.6]} 21... g6 {[%clk 0:01:02.8]} 22. Nf3 {[%clk 0:00:12.9]} 22...
Qd8 {[%clk 0:00:55.7]} 23. Qh6 {[%clk 0:00:12.1]} 23... Qe7 {[%clk 0:00:39.7]}
24. h4 {[%clk 0:00:11.9]} 24... Bf5 {[%clk 0:00:32.6]} 25. h5 {[%clk 0:00:11.4]}
25... Rbe8 {[%clk 0:00:21.7]} 26. Kh2 {[%clk 0:00:11.4]} 26... c4 {[%clk
0:00:17.9]} 27. Ng5 {[%clk 0:00:11.5]} 27... f6 {[%clk 0:00:17.6]} 28. exf6
{[%clk 0:00:11.5]} 28... Qd7 {[%clk 0:00:15.6]} 29. f7+ {[%clk 0:00:10.8]} 29...
Rxf7 {[%clk 0:00:15.4]} 30. Nxf7 {[%clk 0:00:10.7]} 30... Qxf7 {[%clk
0:00:15.5]} 31. Rxe8+ {[%clk 0:00:10.6]} 31... Qxe8 {[%clk 0:00:15.7]} 32. hxg6
{[%clk 0:00:10.8]} 32... Bxg6 {[%clk 0:00:15.6]} 33. Qf4 {[%clk 0:00:11.3]}
33... Qf7 {[%clk 0:00:15.1]} 34. Qxf7+ {[%clk 0:00:10.5]} 34... Kxf7 {[%clk
0:00:15.5]} 35. c3 {[%clk 0:00:11.1]} 35... Ke6 {[%clk 0:00:15.6]} 36. Re3+
{[%clk 0:00:11.2]} 36... Kd6 {[%clk 0:00:15.2]} 37. f4 {[%clk 0:00:11.6]} 37...
Bf5 {[%clk 0:00:14.4]} 38. Re5 {[%clk 0:00:10.1]} 38... Bb1 {[%clk 0:00:13.5]}
39. a3 {[%clk 0:00:09.4]} 39... Be4 {[%clk 0:00:12.8]} 40. g4 {[%clk 0:00:09.1]}
40... a5 {[%clk 0:00:12.6]} 41. Kg3 {[%clk 0:00:09.2]} 41... b5 {[%clk
0:00:13.1]} 42. Kf2 {[%clk 0:00:08.8]} 42... b4 {[%clk 0:00:12.6]} 43. axb4
{[%clk 0:00:09]} 43... axb4 {[%clk 0:00:13.2]} 44. cxb4 {[%clk 0:00:09.3]} 44...
c3 {[%clk 0:00:13.5]} 45. Ke3 {[%clk 0:00:09]} 45... Kc6 {[%clk 0:00:13.2]} 46.
Re8 {[%clk 0:00:08.7]} 46... Kb5 {[%clk 0:00:13.3]} 47. Rc8 {[%clk 0:00:08.6]}
47... Kxb4 {[%clk 0:00:13.5]} 48. Kd4 {[%clk 0:00:08.7]} 48... c2 {[%clk
0:00:13.7]} 49. f5 {[%clk 0:00:09.1]} 49... Kb3 {[%clk 0:00:13.6]} 50. f6 {[%clk
0:00:09.1]} 50... Bg6 {[%clk 0:00:13.6]} 51. Kxd5 {[%clk 0:00:08.9]} 51... Kb2
{[%clk 0:00:13.3]} 52. Ke6 {[%clk 0:00:09.1]} 52... c1=Q {[%clk 0:00:12.4]} 53.
Rxc1 {[%clk 0:00:09.6]} 53... Kxc1 {[%clk 0:00:13.3]} 54. f7 {[%clk 0:00:10.1]}
54... Bxf7+ {[%clk 0:00:13.6]} 55. Kxf7 {[%clk 0:00:11]} 55... Kd2 {[%clk
0:00:14.2]} 56. Kg7 {[%clk 0:00:11.5]} 56... Ke3 {[%clk 0:00:14.8]} 57. Kxh7
{[%clk 0:00:11.8]} 57... Kf4 {[%clk 0:00:15.5]} 58. g5 {[%clk 0:00:12]} 58...
Kxg5 {[%clk 0:00:16.1]} 1/2-1/2

[Event "Late-Titled-Tuesday-Blitz-May-07-2024"]
[Site "Chess.com"]
[Date "2024.05.07"]
[Round "11"]
[White "Kirill_Klukin"]
[Black "ReadySkate"]
[Result "1-0"]
[WhiteElo "2825"]
[BlackElo "2713"]
[TimeControl "180+1"]
[EndTime "16:07:36 PDT"]
[Termination "Kirill_Klukin won by resignation"]

1. d4 {[%clk 0:03:00.9]} 1... Nf6 {[%clk 0:02:59.1]} 2. Nf3 {[%clk 0:03:00.4]}
2... g6 {[%clk 0:02:59.4]} 3. e3 {[%clk 0:03:00.6]} 3... Bg7 {[%clk 0:03:00]} 4.
Be2 {[%clk 0:03:01.3]} 4... O-O {[%clk 0:03:00.6]} 5. O-O {[%clk 0:03:02.1]}
5... d5 {[%clk 0:03:01.1]} 6. b4 {[%clk 0:03:02.3]} 6... b6 {[%clk 0:02:59.1]}
7. Bb2 {[%clk 0:03:02.4]} 7... Bb7 {[%clk 0:02:59.6]} 8. Nbd2 {[%clk 0:03:03.1]}
8... Nbd7 {[%clk 0:02:59.6]} 9. c4 {[%clk 0:03:03.4]} 9... c5 {[%clk 0:02:59.6]}
10. dxc5 {[%clk 0:02:59.3]} 10... bxc5 {[%clk 0:02:57.4]} 11. b5 {[%clk
0:02:58.2]} 11... Rc8 {[%clk 0:02:49.7]} 12. a4 {[%clk 0:02:53.7]} 12... Qc7
{[%clk 0:02:40.2]} 13. cxd5 {[%clk 0:02:49.3]} 13... Bxd5 {[%clk 0:02:38.2]} 14.
Rc1 {[%clk 0:02:43.6]} 14... Rfd8 {[%clk 0:02:37]} 15. Qc2 {[%clk 0:02:40.2]}
15... Qb8 {[%clk 0:02:19.7]} 16. Rfd1 {[%clk 0:02:31.9]} 16... Ng4 {[%clk
0:02:05.4]} 17. Bxg7 {[%clk 0:02:24.4]} 17... Kxg7 {[%clk 0:02:06.3]} 18. Qb2+
{[%clk 0:02:12.8]} 18... Kg8 {[%clk 0:02:05.1]} 19. h3 {[%clk 0:02:07.9]} 19...
Nge5 {[%clk 0:01:58.6]} 20. Nxe5 {[%clk 0:01:46.5]} 20... Nxe5 {[%clk
0:01:59.5]} 21. Qa3 {[%clk 0:01:45.7]} 21... c4 {[%clk 0:01:29.3]} 22. Qxe7
{[%clk 0:00:49.7]} 22... c3 {[%clk 0:01:27]} 23. Nf1 {[%clk 0:00:48.8]} 23... c2
{[%clk 0:01:25.7]} 24. Rd4 {[%clk 0:00:39.2]} 24... Bb3 {[%clk 0:01:20.8]} 25.
Qb4 {[%clk 0:00:32.9]} 25... Rxd4 {[%clk 0:00:32.8]} 26. exd4 {[%clk 0:00:32.6]}
26... Bc4 {[%clk 0:00:33.3]} 27. Rxc2 {[%clk 0:00:28]} 27... Bxe2 {[%clk
0:00:27]} 28. Rxe2 {[%clk 0:00:24.7]} 28... Nd3 {[%clk 0:00:26.5]} 29. Qd2
{[%clk 0:00:23.1]} 29... Nf4 {[%clk 0:00:24.6]} 30. Re5 {[%clk 0:00:20.5]} 30...
Ne6 {[%clk 0:00:22.6]} 31. Qe3 {[%clk 0:00:20.5]} 31... Rd8 {[%clk 0:00:20.8]}
32. d5 {[%clk 0:00:18.7]} 32... Nc7 {[%clk 0:00:21]} 33. Qe4 {[%clk 0:00:15.8]}
33... Ne8 {[%clk 0:00:19.8]} 34. Ne3 {[%clk 0:00:15.4]} 34... Nf6 {[%clk
0:00:19.7]} 35. Qd4 {[%clk 0:00:12.2]} 35... Nd7 {[%clk 0:00:18.3]} 36. Re7
{[%clk 0:00:12.1]} 36... Qd6 {[%clk 0:00:18.3]} 37. Re4 {[%clk 0:00:10.1]} 37...
Rc8 {[%clk 0:00:18.4]} 38. g3 {[%clk 0:00:09.5]} 38... Nf6 {[%clk 0:00:17.9]}
39. Rf4 {[%clk 0:00:09.6]} 39... Nd7 {[%clk 0:00:16.8]} 40. Ng4 {[%clk
0:00:09.7]} 40... Rc1+ {[%clk 0:00:08.2]} 41. Kg2 {[%clk 0:00:10]} 41... f5
{[%clk 0:00:08]} 42. Nh6+ {[%clk 0:00:09.3]} 42... Kf8 {[%clk 0:00:08.6]} 43.
Qh8+ {[%clk 0:00:08.8]} 43... Ke7 {[%clk 0:00:09.1]} 44. Qxh7+ {[%clk 0:00:08]}
44... Ke8 {[%clk 0:00:09.7]} 45. Qg8+ {[%clk 0:00:08.1]} 45... Ke7 {[%clk
0:00:09.6]} 46. Qg7+ {[%clk 0:00:08.6]} 46... Ke8 {[%clk 0:00:09.5]} 47. Qg8+
{[%clk 0:00:09]} 47... Ke7 {[%clk 0:00:09.7]} 48. Rf3 {[%clk 0:00:09.7]} 48...
Ne5 {[%clk 0:00:08]} 49. Re3 {[%clk 0:00:10]} 49... Kd7 {[%clk 0:00:06.3]} 50.
Qg7+ {[%clk 0:00:09.8]} 50... Kc8 {[%clk 0:00:06.1]} 51. Qxe5 {[%clk 0:00:10.1]}
51... Qxd5+ {[%clk 0:00:06.3]} 52. Qxd5 {[%clk 0:00:10.5]} 1-0

[Event "Late-Titled-Tuesday-Blitz-May-07-2024"]
[Site "Chess.com"]
[Date "2024.05.07"]
[Round "11"]
[White "th3d4rkness"]
[Black "VictorFcQNK"]
[Result "0-1"]
[WhiteElo "2215"]
[BlackElo "2118"]
[TimeControl "180+1"]
[EndTime "16:07:37 PDT"]
[Termination "VictorFcQNK won by resignation"]

1. e4 {[%clk 0:03:00.9]} 1... e6 {[%clk 0:02:59.7]} 2. d3 {[%clk 0:02:59.8]}
2... d5 {[%clk 0:02:57]} 3. Nd2 {[%clk 0:02:59.9]} 3... c5 {[%clk 0:02:53.4]} 4.
g3 {[%clk 0:03:00]} 4... Nf6 {[%clk 0:02:45.7]} 5. Bg2 {[%clk 0:03:00.4]} 5...
Be7 {[%clk 0:02:43.2]} 6. Ngf3 {[%clk 0:03:00.7]} 6... O-O {[%clk 0:02:39]} 7.
O-O {[%clk 0:03:00.7]} 7... Nc6 {[%clk 0:02:38.5]} 8. e5 {[%clk 0:02:59.8]} 8...
Nd7 {[%clk 0:02:33.6]} 9. Re1 {[%clk 0:03:00.2]} 9... Qc7 {[%clk 0:02:26.9]} 10.
Qe2 {[%clk 0:03:00]} 10... b5 {[%clk 0:02:24.6]} 11. h4 {[%clk 0:02:59.2]} 11...
a5 {[%clk 0:02:21.8]} 12. Nf1 {[%clk 0:02:59]} 12... a4 {[%clk 0:02:19.1]} 13.
a3 {[%clk 0:02:58.9]} 13... Ba6 {[%clk 0:02:15.4]} 14. Bf4 {[%clk 0:02:54.4]}
14... b4 {[%clk 0:02:12.3]} 15. Ne3 {[%clk 0:02:52.5]} 15... bxa3 {[%clk
0:01:57.6]} 16. bxa3 {[%clk 0:02:52]} 16... Qa5 {[%clk 0:01:52.6]} 17. c4 {[%clk
0:02:42.2]} 17... Nd4 {[%clk 0:01:45.7]} 18. Nxd4 {[%clk 0:02:38.6]} 18... cxd4
{[%clk 0:01:42.4]} 19. Nxd5 {[%clk 0:02:28.9]} 19... exd5 {[%clk 0:01:38.5]} 20.
Bxd5 {[%clk 0:02:27.8]} 20... Nc5 {[%clk 0:01:32.6]} 21. Bd2 {[%clk 0:02:12.3]}
21... Qc7 {[%clk 0:01:27.7]} 22. Qg4 {[%clk 0:02:00.8]} 22... Bc8 {[%clk
0:01:18.5]} 23. Qh5 {[%clk 0:01:58.1]} 23... Rb8 {[%clk 0:01:15.7]} 24. Bb4
{[%clk 0:01:48.9]} 24... Be6 {[%clk 0:01:05.3]} 25. Bxc5 {[%clk 0:01:43.7]}
25... Qxc5 {[%clk 0:01:02.5]} 26. Be4 {[%clk 0:01:35.9]} 26... g6 {[%clk
0:00:56.9]} 27. Qh6 {[%clk 0:01:33]} 27... Rb6 {[%clk 0:00:53.2]} 28. f4 {[%clk
0:01:22.1]} 28... Rfb8 {[%clk 0:00:49.4]} 29. h5 {[%clk 0:01:20.4]} 29... Bf8
{[%clk 0:00:42.6]} 30. Qg5 {[%clk 0:01:19.6]} 30... Qe7 {[%clk 0:00:36.7]} 31.
hxg6 {[%clk 0:01:09.8]} 31... hxg6 {[%clk 0:00:29.2]} 32. Qxe7 {[%clk
0:00:58.2]} 32... Bxe7 {[%clk 0:00:29.5]} 33. Rec1 {[%clk 0:00:51.3]} 33... Bc5
{[%clk 0:00:28.8]} 34. Ra2 {[%clk 0:00:48.8]} 34... Rb2 {[%clk 0:00:25]} 35.
Rxb2 {[%clk 0:00:48.3]} 35... Rxb2 {[%clk 0:00:24.6]} 36. Bc6 {[%clk 0:00:47.8]}
36... Rb3 {[%clk 0:00:19.1]} 37. Bxa4 {[%clk 0:00:45.5]} 37... Rxa3 {[%clk
0:00:19.3]} 38. Bc6 {[%clk 0:00:40.4]} 38... Rxd3 {[%clk 0:00:18.9]} 39. Rb1
{[%clk 0:00:40.1]} 39... Rxg3+ {[%clk 0:00:18.6]} 40. Kf2 {[%clk 0:00:39.6]}
40... Rc3 {[%clk 0:00:17.4]} 41. Rb8+ {[%clk 0:00:37.5]} 41... Kg7 {[%clk
0:00:17.3]} 42. Rb5 {[%clk 0:00:37.3]} 42... Ba7 {[%clk 0:00:15.6]} 43. Rb7
{[%clk 0:00:33.1]} 43... Bc5 {[%clk 0:00:14.9]} 44. Bd5 {[%clk 0:00:33.3]} 44...
d3+ {[%clk 0:00:14.5]} 45. Ke1 {[%clk 0:00:30.5]} 45... Bxd5 {[%clk 0:00:12.7]}
46. cxd5 {[%clk 0:00:29.6]} 46... Be3 {[%clk 0:00:12.7]} 47. Rb1 {[%clk
0:00:24]} 47... Rc1+ {[%clk 0:00:12.3]} 48. Rxc1 {[%clk 0:00:23.6]} 48... Bxc1
{[%clk 0:00:12.3]} 49. Kd1 {[%clk 0:00:24]} 49... d2 {[%clk 0:00:11.2]} 50. Ke2
{[%clk 0:00:23.6]} 50... Kf8 {[%clk 0:00:11.3]} 51. Kd1 {[%clk 0:00:21.2]} 51...
Ke7 {[%clk 0:00:11.4]} 52. Ke2 {[%clk 0:00:21.5]} 52... Kd7 {[%clk 0:00:11.3]}
53. Kd1 {[%clk 0:00:20.3]} 53... Kc7 {[%clk 0:00:11.3]} 54. Ke2 {[%clk 0:00:20]}
54... Kb6 {[%clk 0:00:11.4]} 55. Kd1 {[%clk 0:00:16.5]} 55... Kc5 {[%clk
0:00:11.1]} 56. e6 {[%clk 0:00:16.1]} 56... fxe6 {[%clk 0:00:10.9]} 57. dxe6
{[%clk 0:00:16.2]} 57... Kd6 {[%clk 0:00:11.2]} 58. f5 {[%clk 0:00:16.8]} 58...
gxf5 {[%clk 0:00:11]} 0-1

[Event "Late-Titled-Tuesday-Blitz-May-07-2024"]
[Site "Chess.com"]
[Date "2024.05.07"]
[Round "11"]
[White "XDPS"]
[Black "IMRosen"]
[Result "1-0"]
[WhiteElo "2827"]
[BlackElo "2638"]
[TimeControl "180+1"]
[EndTime "16:07:40 PDT"]
[Termination "XDPS won by resignation"]

1. d4 {[%clk 0:03:00.9]} 1... a5 {[%clk 0:03:00.9]} 2. e4 {[%clk 0:02:58.6]}
2... Ra6 {[%clk 0:03:01.8]} 3. Bxa6 {[%clk 0:02:58.8]} 3... Nxa6 {[%clk
0:03:02.7]} 4. Nf3 {[%clk 0:02:59.1]} 4... g6 {[%clk 0:03:01.4]} 5. O-O {[%clk
0:02:59.3]} 5... Bg7 {[%clk 0:03:02.1]} 6. c3 {[%clk 0:02:59.8]} 6... b6 {[%clk
0:03:02.9]} 7. Re1 {[%clk 0:02:59.9]} 7... Bb7 {[%clk 0:03:03.7]} 8. Bg5 {[%clk
0:02:59.4]} 8... h6 {[%clk 0:03:00.9]} 9. Bh4 {[%clk 0:02:59.2]} 9... g5 {[%clk
0:03:01.2]} 10. Bg3 {[%clk 0:02:59.5]} 10... e6 {[%clk 0:03:01.6]} 11. Na3
{[%clk 0:02:55.1]} 11... Ne7 {[%clk 0:03:00.9]} 12. Nd2 {[%clk 0:02:53]} 12...
Ng6 {[%clk 0:02:59.5]} 13. Nac4 {[%clk 0:02:52.2]} 13... h5 {[%clk 0:02:55.9]}
14. h3 {[%clk 0:02:50.1]} 14... Qa8 {[%clk 0:02:49.4]} 15. a4 {[%clk 0:02:45.4]}
15... d6 {[%clk 0:02:46.2]} 16. Qf3 {[%clk 0:02:29.6]} 16... Nb8 {[%clk
0:02:42.6]} 17. Bxd6 {[%clk 0:02:28.3]} 17... g4 {[%clk 0:02:31.9]} 18. hxg4
{[%clk 0:02:27.5]} 18... hxg4 {[%clk 0:02:32.8]} 19. Qxg4 {[%clk 0:02:28]} 19...
cxd6 {[%clk 0:02:30.9]} 20. Nxd6+ {[%clk 0:02:28.9]} 20... Ke7 {[%clk
0:02:07.3]} 21. N2c4 {[%clk 0:02:28.8]} 21... Nd7 {[%clk 0:01:57.2]} 22. d5
{[%clk 0:02:10.8]} 22... Rh4 {[%clk 0:01:41.1]} 23. Qg3 {[%clk 0:02:06.1]} 23...
Qh8 {[%clk 0:01:30.4]} 24. f3 {[%clk 0:02:01.7]} 24... Bf6 {[%clk 0:01:13]} 25.
dxe6 {[%clk 0:01:01.6]} 25... Rh1+ {[%clk 0:00:23.4]} 26. Kf2 {[%clk 0:01:00.9]}
26... Bd4+ {[%clk 0:00:13.4]} 27. Ke2 {[%clk 0:01:01]} 27... Rxe1+ {[%clk
0:00:10.5]} 28. Rxe1 {[%clk 0:01:00.1]} 28... Bc5 {[%clk 0:00:02.6]} 29. Nxb7
{[%clk 0:00:50.8]} 29... Kxe6 {[%clk 0:00:02.8]} 30. Rd1 {[%clk 0:00:49.1]}
30... Qh6 {[%clk 0:00:02.1]} 31. Rd6+ {[%clk 0:00:47.4]} 31... Ke7 {[%clk
0:00:02.7]} 32. Nxc5 {[%clk 0:00:39]} 32... Nxc5 {[%clk 0:00:02.6]} 33. Rd2
{[%clk 0:00:11]} 33... Nf4+ {[%clk 0:00:02.3]} 34. Kd1 {[%clk 0:00:07.6]} 34...
Qh1+ {[%clk 0:00:02.8]} 35. Kc2 {[%clk 0:00:08]} 35... Nce6 {[%clk 0:00:03.1]}
36. Nxb6 {[%clk 0:00:07.4]} 36... Qa1 {[%clk 0:00:02.8]} 37. Nd5+ {[%clk
0:00:07.9]} 37... Kf8 {[%clk 0:00:01.7]} 38. Nxf4 {[%clk 0:00:08]} 38... Qxa4+
{[%clk 0:00:02.1]} 39. Kb1 {[%clk 0:00:08.7]} 39... Nxf4 {[%clk 0:00:01.1]} 40.
Qxf4 {[%clk 0:00:09]} 40... Qe8 {[%clk 0:00:01.2]} 41. Qd6+ {[%clk 0:00:09.1]}
41... Kg7 {[%clk 0:00:01.4]} 42. Rd5 {[%clk 0:00:09.8]} 42... f6 {[%clk
0:00:01.6]} 43. Qd7+ {[%clk 0:00:09.4]} 43... Qf7 {[%clk 0:00:01.5]} 44. Qb5
{[%clk 0:00:08.8]} 44... a4 {[%clk 0:00:01.1]} 45. Rd7 {[%clk 0:00:09.3]} 45...
a3 {[%clk 0:00:01]} 46. Rxf7+ {[%clk 0:00:09.5]} 46... Kxf7 {[%clk 0:00:01.7]}
47. bxa3 {[%clk 0:00:09.9]} 47... Kg6 {[%clk 0:00:02.5]} 48. a4 {[%clk
0:00:10.8]} 48... Kh6 {[%clk 0:00:01.9]} 49. Qa5 {[%clk 0:00:11]} 49... Kg6
{[%clk 0:00:02.4]} 50. Qb4 {[%clk 0:00:11.5]} 50... Kh6 {[%clk 0:00:02.9]} 51.
a5 {[%clk 0:00:12.4]} 51... Kg5 {[%clk 0:00:02.7]} 52. a6 {[%clk 0:00:13.3]}
52... f5 {[%clk 0:00:03.2]} 53. Qe7+ {[%clk 0:00:13.3]} 53... Kf4 {[%clk
0:00:02.8]} 54. Qd6+ {[%clk 0:00:13.7]} 54... Kg5 {[%clk 0:00:03.2]} 55. Qg3+
{[%clk 0:00:13.6]} 55... Kf6 {[%clk 0:00:02.3]} 56. Qf4 {[%clk 0:00:14]} 56...
Kg6 {[%clk 0:00:02.1]} 57. Qxf5+ {[%clk 0:00:14.3]} 1-0